Cogmind - Beta 14 *** ADVENTURER MODE // 2025.03.08 @ 06:48:49 Player: Lee Result: Core destroyed Performance ------------- Evolutions (1) 500 Regions Visited (4) 800 Robots Destroyed (33) 165 Value Destroyed (794) 794 Prototype IDs (1) 20 Alien Tech Used (0) 0 Bonus (14) 14 TOTAL SCORE: 2293 Bonus ------- High Alert Combat Kills 24 Follower Combat Kills 7 Friendly Fire -17 Cogmind --------- Core Integrity 0/400 Matter 260/300 Energy 121/150 System Corruption 1% Temperature Critical (506) Movement Flying (34) Location -9/Storage Parts ------- > --- POWER (2) -------- Light Ion Engine Light Ion Engine > --- PROPULSION (3) --- Improved Flight Unit Improved Flight Unit Improved Flight Unit > --- UTILITY (2) ------ Small Storage Unit Weight Redist. System > --- WEAPON (2) ------- Particle Gun Mini Grenade Launcher > --- INVENTORY (8) ---- Ion Engine Light Ion Engine Structural Scanner Particle Gun Peak State ------------ > --- POWER ------------ Light Ion Engine Light Ion Engine > --- PROPULSION ------- Improved Flight Unit Improved Flight Unit Improved Flight Unit > --- UTILITY ---------- Small Storage Unit Weight Redist. System > --- WEAPON ----------- Particle Gun Particle Gun > --- INVENTORY -------- Ion Engine Light Ion Engine Structural Scanner Mini Grenade Launcher [Rating: 18] Favorites ----------- Power Light Ion Engine Engine Light Ion Engine Propulsion Light Treads Treads Light Treads Leg Aluminum Leg Wheel Wheel Flight Unit Improved Flight Unit Utility Small Storage Unit Device Shield Generator Storage Small Storage Unit Weapon Particle Gun Energy Gun Particle Gun Ballistic Gun Assault Rifle Ballistic Cannon Improved Light Cannon Launcher Mini Grenade Launcher Build | -11 -10 -10 -9 -9 ------- Run | Yrd Mat Min Mat Sto Slots Evolved 2 | . . . 2 . Power 1 | . . . 1 . Propulsion 1 | . . . 1 . Utility . | . . . . . Weapon . | . . . . . Parts Attached 37 | 7 3 6 4 17 Power 5 | 1 . 1 1 2 Engine 5 | 1 . 1 1 2 Core . | . . . . . Reactor . | . . . . . Propulsion 18 | 4 . 3 2 9 Treads 2 | 2 . . . . Leg 1 | 1 . . . . Wheel 12 | 1 . 3 2 6 Hover . | . . . . . Flight 3 | . . . . 3 Utility 4 | . 2 1 . 1 Device 2 | . 1 . . 1 Storage 2 | . 1 1 . . Processor . | . . . . . Hackware . | . . . . . Protection . | . . . . . Artifact . | . . . . . Weapon 10 | 2 1 1 1 5 Energy Gun 4 | 1 1 . . 2 Energy Cannon . | . . . . . Ballistic Gun 3 | 1 . 1 1 . Ballistic Cannon 1 | . . . . 1 Launcher 2 | . . . . 2 Special Weapon . | . . . . . Impact Weapon . | . . . . . Slashing Weapon . | . . . . . Piercing Weapon . | . . . . . Special Melee Weapon . | . . . . . Unidentified Prototypes 1 | . . . . 1 Parts Lost 14 | . . 3 . 11 Power 3 | . . 1 . 2 Propulsion 7 | . . . . 7 Utility 1 | . . 1 . . Weapon 3 | . . 1 . 2 Highest Loss Streak 10 | . . 2 . 10 To Critical Strikes 1 | . . . . 1 Average Slot Usage (%) 86 | . 84 87 94 82 Engine 14 | . 14 13 16 15 Treads 12 | . 28 23 . . Wheel 12 | . . 4 33 19 Flight 1 | . . . . 4 Device 3 | . 6 2 . 4 Storage 15 | . 7 14 22 18 Energy Gun 12 | . 14 14 5 13 Ballistic Gun 11 | . 14 13 16 6 Peak Build Rating 18 | 5 9 9 12 18 Average Rating 8 | 3 6 7 10 10 On Entrance 6 | . 5 9 9 11 Naked Turns . | . . . . . Heaviest Build 24 | 7 15 17 24 23 Greatest Support 42 | 20 20 40 36 42 Greatest Overweight (x) 5 | . . . . 5 Average Overweight (x) . | . . . . . Largest Inventory Capacity 8 | 5 8 8 8 8 Average Capacity 7 | 5 6 8 8 8 Most Carried 8 | 5 7 8 8 8 Average Carried 5 | 4 5 6 7 4 Final Capacity 8 | 5 8 8 8 8 Final Carried 8 | 5 6 8 7 4 Class Distribution -------------------- 65% | Mutant 34% | Scavenger-Mutant Dominant Class ---------------- Mutant | -10/Materials Mutant | -10/Mines Scavenger-Mutant | -9/Materials Scavenger-Mutant | -9/Storage Resources | -11 -10 -10 -9 -9 ----------- Run | Yrd Mat Min Mat Sto Matter Collected 767 | 156 16 262 67 266 Remotely . | . . . . . Salvage Created 1047 | . 50 200 160 637 Parts 75 | . 8 9 13 45 Haulers Intercepted 1 | . . . . 1 Recyclers Shooed 1 | . . . . 1 Parts Field Recycled . | . . . . . Retrieved Matter . | . . . . . Parts Self-Destructed . | . . . . . Prevented . | . . . . . Kills | -11 -10 -10 -9 -9 ------- Run | Yrd Mat Min Mat Sto Combat Hostiles Destroyed 32 | . 3 11 2 16 Guns 27 | . 3 11 2 11 Cannons 2 | . . . . 2 AOE 3 | . . . . 3 Classes Destroyed 8 | . 1 2 3 2 Worker 3 | . . . 1 2 Builder 2 | . . . 1 1 Hauler 1 | . . . . 1 Operator 1 | . . . . 1 Swarmer 10 | . 3 3 . 4 Grunt 10 | . . 2 . 8 Sentry 6 | . . . 2 4 Assembled 6 | . . 6 . . Best Kill Streak 11 | . 3 3 2 11 Combat Bots Only 6 | . 3 3 1 6 Max Kills in Single Turn 2 | . 1 2 1 1 Gunslinging 1 | . . 1 . . Exploded 1 | . . . . 1 Melee . | . . . . . Uniques/NPCs Destroyed . | . . . . . Combat | -11 -10 -10 -9 -9 -------- Run | Yrd Mat Min Mat Sto Hostile Shots Fired 240 | . 14 56 10 160 Missed 54 | . 6 11 5 32 Damage Taken 1837 | . 47 468 60 1262 Core 477 | . 14 56 12 395 Absorbed by Shields 55 | . . 55 . . Ignored by Resistances 536 | . 16 153 17 350 Core Remaining (%) 86 | 100 . 72 . . Volleys Fired 98 | . 5 32 12 49 Largest 2 | . 2 2 2 2 Hottest 130 | . 85 85 85 130 Shots Fired 177 | . 10 56 20 91 Gun 164 | . 10 56 20 78 Cannon 8 | . . . . 8 Launcher 5 | . . . . 5 Special . | . . . . . Kinetic 82 | . 5 28 17 32 Thermal 90 | . 5 28 3 54 Explosive 5 | . . . . 5 Electromagnetic . | . . . . . Robot Hit Streak 24 | . 3 15 8 24 Robot Miss Streak 3 | . 2 3 1 2 Penetration Max . | . . . . . Secondary Targets 8 | . 2 3 . 3 Max Gunslinging Chain 1 | . 1 1 . 1 Shots Hit Robots 137 | . 6 43 15 73 Core Hits 63 | . 4 19 7 33 Critical Kills . | . . . . . Critical Parts Destroyed . | . . . . . Critical Strikes 4 | . . 1 . 3 Burn 4 | . . 1 . 3 Melee Attacks . | . . . . . Impact . | . . . . . Slashing . | . . . . . Piercing . | . . . . . Sneak Attacks . | . . . . . Combat Hostiles . | . . . . . Follow-up Attacks . | . . . . . Damage Inflicted 2045 | . 75 637 148 1185 Guns 1718 | . 75 632 147 864 Cannons 96 | . . . . 96 Explosions 210 | . . . . 210 Melee . | . . . . . Ramming 21 | . . 5 1 15 Kinetic 726 | . 36 252 118 320 Thermal 1088 | . 39 380 29 640 Explosive 210 | . . . . 210 Electromagnetic . | . . . . . Impact . | . . . . . Slashing . | . . . . . Piercing . | . . . . . Highest Corruption 2 | . . 2 . 1 Average Corruption 1 | . . 1 . 1 Corruption Purged . | . . . . . Corruption Blocked . | . . . . . Effects 6 | . . 5 . 1 Message Errors 5 | . . 4 . 1 Misfires 1 | . . 1 . . Overload Shots . | . . . . . Overflow Damage . | . . . . . Projectiles . | . . . . . Explosions . | . . . . . Melee . | . . . . . Knockbacks . | . . . . . Impact . | . . . . . Kinetic . | . . . . . Secondary . | . . . . . Self-Inflicted Damage 15 | . . 2 . 13 Shots 1 | . . . . 1 Rammed 5 | . . 1 1 3 Targets Rammed 5 | . . 1 1 3 Kicked . | . . . . . Crushed . | . . . . . Highest Temperature 506 | . 27 373 91 506 Average Temperature 149 | . 14 110 29 199 Received Heat Transfer 799 | . . 205 18 576 Effects 12 | . . 2 . 10 Shutdowns 3 | . . 1 . 2 Energy Bleed 3 | . . . . 3 Interference 2 | . . . . 2 Matter Decay 1 | . . . . 1 Short Circuit 1 | . . 1 . . Damage (minor) 1 | . . . . 1 Damage (core) 1 | . . . . 1 Siege Activations . | . . . . . Robots Corrupted . | . . . . . Combat Hostiles . | . . . . . Parts Fried . | . . . . . Impact Corruptions . | . . . . . Robots Melted . | . . . . . Combat Hostiles . | . . . . . Parts Melted 4 | . . 1 . 3 Heat Transferred 2923 | . 111 962 74 1776 Parts Sabotaged . | . . . . . Parts Stolen . | . . . . . Parts Stripped . | . . . . . Power Chain Reactions . | . . . . . Alert | -11 -10 -10 -9 -9 ------- Run | Yrd Mat Min Mat Sto Peak Influence 530 | . 70 113 161 530 Initial 57 | . . 23 37 57 Average 115 | . 54 34 87 255 Maximum Alert Level 2 | . . . . 2 Low Security (%) 80 | 100 100 100 100 40 Level 1 16 | . . . . 48 Level 2 3 | . . . . 10 Level 3 . | . . . . . Level 4 . | . . . . . Level 5 . | . . . . . High Security . | . . . . . Max Security . | . . . . . Squads Dispatched 7 | . 1 . . 6 Investigation 1 | . 1 . . . Extermination . | . . . . . Reinforcement 1 | . . . . 1 Assault 2 | . . . . 2 Garrison 3 | . . . . 3 Intercept . | . . . . . Searches Triggered . | . . . . . Construction Impeded . | . . . . . Haulers Reinforced . | . . . . . Active Scanning Responses . | . . . . . Cargo Convoy Interrupts . | . . . . . Stealth | -11 -10 -10 -9 -9 --------- Run | Yrd Mat Min Mat Sto Distress Signals 2 | . . . . 2 Communications Jammed . | . . . . . Distress Signals . | . . . . . Times Spotted 45 | . 3 16 4 22 Peak Tracking Total 8 | . 3 5 4 8 Tactical Retreats 4 | . . 2 . 2 Traps | -11 -10 -10 -9 -9 ------- Run | Yrd Mat Min Mat Sto Traps Triggered 1 | . 1 . . . Indirectly . | . . . . . Trap Hack Attempts . | . . . . . Triggered . | . . . . . Disarmed . | . . . . . Reprogrammed . | . . . . . Reused . | . . . . . Traps Extracted . | . . . . . Installed . | . . . . . Triggered . | . . . . . Machines | -11 -10 -10 -9 -9 ---------- Run | Yrd Mat Min Mat Sto Machines Disabled 4 | . . . 1 3 Max in Single Turn 1 | . . . 1 1 Machines Repaired . | . . . . . Machines Dismantled . | . . . . . Machines Sabotaged . | . . . . . Overloaded Fab Kills . | . . . . . Hacking | -11 -10 -10 -9 -9 --------- Run | Yrd Mat Min Mat Sto Machines Accessed . | . . . . . Terminals . | . . . . . Fabricators . | . . . . . Repair Stations . | . . . . . Recycling Units . | . . . . . Scanalyzers . | . . . . . Garrison Access . | . . . . . Total Hacks . | . . . . . Successful . | . . . . . Failed . | . . . . . Catastrophic . | . . . . . Database Lockouts . | . . . . . Manual . | . . . . . Terminals . | . . . . . Fabricators . | . . . . . Repair Stations . | . . . . . Recycling Units . | . . . . . Scanalyzers . | . . . . . Garrison Access . | . . . . . Terminal Hacks . | . . . . . Fabricator Hacks . | . . . . . Repair Station Hacks . | . . . . . Recycling Unit Hacks . | . . . . . Scanalyzer . | . . . . . Garrison Access Hacks . | . . . . . Unauthorized Hacks . | . . . . . Terminals . | . . . . . Fabricators . | . . . . . Repair Stations . | . . . . . Recycling Units . | . . . . . Scanalyzers . | . . . . . Garrison Access . | . . . . . Data Cores Recovered . | . . . . . Used . | . . . . . Hacking Detections . | . . . . . Full Trace Events . | . . . . . Feedback Events . | . . . . . Feedback Blocked . | . . . . . Robot Schematics Acquired . | . . . . . Robots Built . | . . . . . Authchips . | . . . . . Time . | . . . . . Total Robot Build Rating . | . . . . . Part Schematics Acquired . | . . . . . Parts Built . | . . . . . Authchips . | . . . . . Time . | . . . . . Total Part Build Rating . | . . . . . Parts Repaired . | . . . . . Time . | . . . . . Parts Recycled . | . . . . . Recycled Matter . | . . . . . Retrieved Matter . | . . . . . Retrieved Components . | . . . . . Parts Scanalyzed . | . . . . . Part Schematics Acquired . | . . . . . Parts Damaged . | . . . . . Bothacking | -11 -10 -10 -9 -9 ------------ Run | Yrd Mat Min Mat Sto Used RIF Installer . | . . . . . Robots Hacked . | . . . . . Non-combat . | . . . . . Combat . | . . . . . Robot Hacks Applied . | . . . . . Relay Couplers Released . | . . . . . Fabnet Peak Effective % . | . . . . . Robots Rewired . | . . . . . Allies Hacked . | . . . . . Hacks Repelled . | . . . . . Allies | -11 -10 -10 -9 -9 -------- Run | Yrd Mat Min Mat Sto Total Allies 2 | . . . . 2 Largest Group 2 | . . . . 2 Highest-Rated Group 62 | . . . . 62 Highest-Rated Ally 31 | . . . . 31 Total Orders . | . . . . . Ally Attacks 18 | . . . . 18 Total Damage 313 | . . . . 313 Kills 3 | . . . . 3 Allies Corrupted . | . . . . . Allies Melted . | . . . . . Intel | -11 -10 -10 -9 -9 ------- Run | Yrd Mat Min Mat Sto Robot Analysis Total . | . . . . . Derelict Logs Recovered 1 | . . 1 . . Drone Launches . | . . . . . Drone Recoveries . | . . . . . Exploration | -11 -10 -10 -9 -9 ------------- Run | Yrd Mat Min Mat Sto Turns Passed 1007 | 65 156 327 123 336 Spaces Moved 602 | 44 85 162 103 208 Core 21 | 19 . . . 2 Treads 229 | 24 85 120 . . Legs 1 | 1 . . . . Wheels 298 | . . 42 103 153 Hover . | . . . . . Flight 53 | . . . . 53 Fastest Speed 34 | 50 160 80 80 34 Average Speed 109 | 111 160 139 80 78 Slowest Speed 300 | 160 160 160 86 300 Overloaded Moves . | . . . . . Propulsion Burnouts . | . . . . . Robots Hopped . | . . . . . Cave-ins Triggered . | . . . . . Exploration Rate (%) 23 | 3 24 38 15 38 Regions Visited 4 Branch Regions 2 Pre-discovered Areas 1 | . . 1 . . Known Exits Taken . | . . . . . Unknown Exits Taken 4 | 1 1 1 1 . Scrap Searched 1 | . . 1 . . Spaces Dug . | . . . . . Terrain Destroyed 39 | . . . . 39 Melee . | . . . . . Projectile . | . . . . . AOE 39 | . . . . 39 Terrain Rammed . | . . . . . Walls Destroyed . | . . . . . Machines Disabled . | . . . . . Actions | -11 -10 -10 -9 -9 --------- Run | Yrd Mat Min Mat Sto Total 783 | 58 96 210 126 293 Wait . | . . . . . Move 598 | 43 84 161 102 208 Hop . | . . . . . Pick Up 33 | 7 3 7 4 12 Fast Attach 4 | 4 . . . . Attach 25 | 2 2 5 3 13 Detach . | . . . . . Swap 8 | 1 1 1 1 4 Drop 12 | 1 1 3 3 4 Fire 98 | . 5 32 12 49 Melee . | . . . . . Ram 5 | . . 1 1 3 Kick . | . . . . . Crush . | . . . . . Escape Stasis . | . . . . . Rewire . | . . . . . Trap . | . . . . . Miscellaneous . | . . . . . Route ------- -11/Scrapyard -10/Materials -10/Mines (discovered 2 exits: [*Mat x2]) -9/Materials -9/Storage History --------- Turn | Location | Event 3 | -11/Scrapyard | Discovered new exit (range 15) 66 | -11/Scrapyard | Entered Materials 130 | -10/Materials | Discovered new exit (range 16) 222 | -10/Materials | Entered Mines 223 | -10/Mines | Assembled infested the area 228 | -10/Mines | Assisted by a Guerilla fighting off Assembled 319 | -10/Mines | Build established: Mutant 429 | -10/Mines | Learned location of Zion (-7) 543 | -10/Mines | Discovered new exit (range 5) 548 | -10/Mines | Discovered new exit (range 12) 549 | -10/Mines | Entered Materials 549 | -9/Materials | Evolved 2 slots: Power x1, Propulsion x1 655 | -9/Materials | Discovered new exit (range 11) 672 | -9/Materials | Entered Storage 765 | -9/Storage | Garrison activated, responded to threat 805 | -9/Storage | Core integrity fell below 50% 835 | -9/Storage | Lost 10 parts (2p6n2w) 951 | -9/Storage | Met a pair of Derelict thieves 952 | -9/Storage | Core integrity fell below 20% 1009 | -9/Storage | Core destroyed Last Messages --------------- 00973_ Acquired 10 matter. 00974_ Acquired 16 matter. 00985_ O-16 Technician destroyed. 00987_ C-30 ARC bursts open, deploying its payload. 00987_ G-47 Trooper unfolds itself. 00987_ G-34 Mercenary unfolds itself. 00987_ M-13 Machinist unfolds itself. 00996_ G-34 Mercenary suffers critical hit (Burn). 00998_ Power failure, Lgt. Ion Engine shutdown. 00998_ Overheating: Energy bleed (-19). 01000_ F,B%NO 01006_ Power failure, Lgt. Ion Engine shutdown. 01007_ Overheating: Sml. Storage Unit damaged (-35). 01007_ G-34 Mercenary destroyed. 01009_ Overheating: Core damaged (-76). Map ----- +----------------------------------------------------+ | ????????????????????????????????????????? | | ????????????????????????????????????????? | | ????????????????????????????????????????? | | ????????????????????????????????????????? | | ????????????????????????????????????????? | | ????????????????????????????????????????? | | ????????????????????????????????????????? | | ????????????????????????????????????????? | | ????????????????????????????????????????? | | ????????????????????????????????????????? | | ??????????????????????? ? ?#????????????? | | ??????????????????????? ?=? ????????????? | | ??????????????????????? #%# ????????????? | | ???????????????????????= ????????????? | | ??????????????????????? ????????????? | | ??????????????????????? % ????????????? | | ????????????????????????== ?????????????? | | ????????????????????????%= ?????????????? | | ???????????????????????? = ?????????????? | | ???????????????????????? ?????????????? | | ???????????????????????? ?????????????? | | ?????????????###+##??### ?????????????? | | ?????????????# ?? ## #?????????????? | | ?????????????# "??" ## #?????????????? | | ?????????????# "??" ## #?????????????? | | ?????????##??# "??" ##@#?????????????? | | ?????????#T### "??" ## #?????????????? | | ?????????" ## !"??" ##+#########?????? | | ???????? ## !!"""" ## #?????? | | ??????? ## !!%!!% ## #?????? | | #######+#######+#+### #?????? | | !! # #?????? | | + #?????? | | !% # #?????? | | #####+########### # #?????? | | #?### ![% ###???# # #?????? | | ??# # %[""#???# ###########?????? | | ??# # ! ![%!""#???# #???????????????? | | ??# # % [T"#???# #???????????????? | | ??### ! ==""#???# #???????????????? | | ??# # [ ""#???# #???????????????? | | ??### " %###???# #???????????????? | | ???# """ " "%#?????# #???????????????? | | ???#### #####/#????## ##??????????????? | | ??????###???# #????# #??????????????? | | ????????????#%#????# % #??????????????? | | ????????????# #????# #??????????????? | | ############# ###### #??????????????? | | ^ #??????????????? | | ^ #######+####?????????????? | +----------------------------------------------------+ Best States ------------- Heat Dissipation 28 Energy Generation 17 Energy Capacity 290 Matter Stores 300 Matter Capacity 300 Sight Range 16 Terrain Scan Density 10 Additional Mass Support 6 Resistance: KI 20 Resistance: TH 20 Resistance: EX 20 Resistance: EM 20 Resistance: I 20 Resistance: S 20 Resistance: P 20 Evasion (%) 63 Recoil Reduction 2 Offensive Hacking 10 Item Schematics ----------------- None Robot Schematics ------------------ None Fabricated ------------ Nothing Alien Tech Used ----------------- None Achievements -------------- None Challenges ------------ None Game ------ Seed CatalystZhirovMicroactuators Manual? 0 Play Time 00:14:30 Cumulative 26.6 hours Start 2025.03.08 @ 02:51:25 End 2025.03.08 @ 06:48:49 Sessions 3 Manual Loads 0 Difficulty Adventurer Special Mode None Game No. 48 Rogue 7 Adventurer 41 Explorer 0 Win Type - Total 0 Types 0/0/0/0/0/0/0/0/0 Lore% 6 Gallery% 26 Achievement% 22 Wizard Run 0 Options --------- Layout 2 ASCII 0 Keyboard 0 Movement Mouse Keybinds 0 Fullscreen 1 Font 24/Smallcaps Map View 50x44 Zoom Use 0% Tactical HUD 1 Map Filters NONE Filters NONE Steam 1 RUN: ce31cb95-4f1d-4f58-a261-420cae259c24